bitfinex-derivatives/quotes_ETHF0:USTF0_20250329
["timestamp","ask_amount","ask_price","bid_price","bid_amount"]
[1743283821184,1.09956,1819.6,1819.5,8.51155328]
[1743283821479,0.00822143,1819.8,1819.5,8.51155328]
[1743283821681,1.09953,1819.7,1819.5,8.51155328]
[1743283821881,2.57033,1819.7,1819.6,2.8553]
[1743283825393,1.09962,1819.5,1819.4,3.2078]
[1743283825983,2.49752,1819.5,1819.4,3.2078]
[1743283826494,2.49752,1819.5,1819.3,2.8898]
[1743283826495,1.09968,1819.4,1819.3,2.8898]
[1743283826697,2.49758,1819.4,1819.3,2.8898]
[1743283829198,2.49758,1819.4,1819.3,1.4364]
[1743283829699,1.09986,1819.1,1819.0,3.2078]
[1743283829997,1.09986,1819.1,1819.0,4.6622]
[1743283830593,1.09986,1819.1,1819.0,3.2078]
[1743283830796,2.59896,1819.1,1819.0,3.2078]
[1743283831190,1.10004,1818.8,1818.7,1.4432]
[1743283831794,2.59914,1818.8,1818.7,1.4432]
[1743283834597,2.59914,1818.8,1818.5,3.2078]
[1743283834904,1.10016,1818.6,1818.5,3.2078]
[1743283835797,1.10022,1818.5,1818.4,1.38]
[1743283837301,1.10043,1818.2,1817.9,1.10055]
[1743283837597,1.10046,1818.1,1817.8,4.3084]
[1743283837797,1.4128,1818.4,1818.0,4.30829]
[1743283838100,1.4128,1818.4,1818.1,1.3962]
[1743283838499,1.1004,1818.2,1818.1,1.3962]
[1743283840298,1.4128,1818.4,1818.1,1.3962]
[1743283840299,1.10037,1818.3,1818.1,1.3962]
[1743283840597,1.4128,1818.4,1818.1,1.3962]
[1743283840598,2.5131,1818.4,1818.1,1.3962]
[1743283840803,1.1003,1818.4,1818.2,4.30818]
[1743283841005,1.10025,1818.5,1818.2,3.2078]
[1743283841599,1.10025,1818.5,1818.3,1.10034]
[1743283841999,1.10025,1818.5,1818.4,0.7074]
[1743283842499,1.4583,1818.6,1818.4,0.7074]
[1743283842803,2.55849,1818.6,1818.5,0.7341]
[1743283847505,1.4583,1818.6,1818.5,0.7341]
[1743283847706,0.00824425,1818.8,1818.6,1.10012]
[1743283847899,0.00824425,1818.8,1818.7,0.7153]
[1743283848710,0.00824425,1818.8,1818.7,1.8154]
[1743283852499,0.00824425,1818.8,1818.7,3.2123]
[1743283857307,0.00824425,1818.8,1818.7,6.4201]
[1743283860602,0.00824425,1818.8,1818.7,5.32]
[1743283861207,1.38664425,1818.8,1818.7,5.32]
[1743283864613,1.38664425,1818.8,1818.7,2.1122]
[1743283864813,1.38664425,1818.8,1818.7,5.32]
[1743283867021,2.48668425,1818.8,1818.7,5.32]
[1743283867216,1.38664425,1818.8,1818.7,5.32]
[1743283868319,1.38664425,1818.8,1818.7,6.4201]
[1743283868735,1.38664425,1818.8,1818.7,5.32]
[1743283868923,1.38664425,1818.8,1818.5,0.7341]
[1743283869119,1.10016,1818.6,1818.5,1.4522]
[1743283869617,2.52956,1818.6,1818.5,1.4522]
[1743283870716,1.4294,1818.6,1818.4,3.2078]
[1743283870923,1.4294,1818.5,1818.4,4.30808]
[1743283871134,1.4294,1818.5,1818.4,5.66938]
[1743283871829,2.52962,1818.5,1818.4,4.5691]
[1743283872127,1.4294,1818.5,1818.4,4.5691]
[1743283872328,2.52962,1818.5,1818.4,4.5691]
[1743283872831,1.4294,1818.5,1818.4,4.5691]
[1743283873031,2.52962,1818.5,1818.4,4.5691]
[1743283873224,2.52962,1818.5,1818.4,1.3613]
[1743283873531,1.4294,1818.5,1818.4,5.66938]
[1743283873924,1.4294,1818.5,1818.4,4.5691]
[1743283874124,2.52962,1818.5,1818.4,4.5691]
[1743283875827,2.52962,1818.5,1818.4,3.2078]
[1743283876028,2.52962,1818.5,1818.3,2.8577]
[1743283876332,1.3827,1818.4,1818.3,3.95804]
[1743283876529,2.48298,1818.4,1818.3,3.95804]
[1743283877031,1.3827,1818.4,1818.3,3.95804]
[1743283877424,1.3827,1818.4,1818.3,2.8577]
[1743283877425,2.48298,1818.4,1818.3,2.8577]
[1743283877625,1.10034,1818.3,1818.2,3.2078]
[1743283877825,2.48304,1818.3,1818.2,4.3082]
[1743283878228,1.1004,1818.2,1818.1,1.4501]
[1743283878428,1.10046,1818.1,1818.0,3.2078]
[1743283878630,1.10046,1818.1,1817.9,1.10056]
[1743283878631,1.80266,1818.1,1817.9,1.10056]
[1743283878826,2.52472,1818.0,1817.8,5.74331]
[1743283879026,2.52478,1817.9,1817.8,1.4349]
[1743283879642,2.52478,1817.9,1817.7,2.47556]
[1743283879838,1.4242,1817.8,1817.7,3.91046]
[1743283881530,1.10055,1818.0,1817.7,2.8098]
[1743283881734,1.4985,1817.9,1817.8,5.6756]
[1743283884142,2.59908,1817.9,1817.8,4.575]
[1743283884334,2.59908,1817.9,1817.8,3.2078]
[1743283884834,2.59908,1817.9,1817.7,2.47857]
[1743283885141,1.4169,1817.8,1817.7,2.47857]
[1743283885340,1.4169,1817.8,1817.7,5.68637]
[1743283887039,2.51754,1817.8,1817.7,1.00460954]
[1743283887341,1.10084,1817.5,1817.3,7.10192]
[1743283887734,2.51779,1817.4,1817.3,7.10192]
[1743283888535,10.97396,1817.4,1816.9,1.10117]
[1743283888743,1.10115,1817.0,1816.8,6.41691]
[1743283889044,1.10113,1817.0,1816.9,1.3788]
[1743283890144,1.10111,1817.1,1816.9,1.3788]
[1743283890343,1.10107,1817.1,1816.9,1.3788]
[1743283891049,3.2078,1817.2,1816.9,1.3788]
[1743283891241,1.10107,1817.1,1816.9,1.3788]
[1743283891442,1.10113,1817.0,1816.9,1.3788]
[1743283891751,3.2078,1817.2,1816.8,3.2078]
[1743283891944,0.6958,1816.9,1816.6,1.4457]
[1743283892249,1.79703,1816.9,1816.7,1.10128]
[1743283892451,0.6958,1816.9,1816.6,2.54703]
[1743283892643,1.79705,1816.9,1816.6,2.54703]
[1743283892843,1.79705,1816.9,1816.7,1.4457]
[1743283893045,1.10125,1816.8,1816.7,1.4457]
[1743283898142,3.2078,1816.8,1816.4,1.4922]
[1743283898347,1.10143,1816.5,1816.4,2.8614]
[1743283901656,3.21604425,1816.6,1816.0,3.2078]
[1743283901857,1.10157,1816.3,1816.2,0.6966]
[1743283902058,1.10157,1816.3,1816.2,2.1946]
[1743283902452,1.4397,1816.4,1816.3,1.10155]
[1743283902650,2.54119,1816.4,1816.3,1.498]
[1743283902851,1.4397,1816.4,1816.3,1.498]
[1743283903149,2.54119,1816.4,1816.3,1.498]
[1743283904256,1.10155,1816.3,1816.2,0.6966]
[1743283904563,2.49755,1816.3,1816.2,0.6966]
[1743283904951,2.49755,1816.3,1816.2,2.1159]
[1743283907057,1.10167,1816.1,1816.0,3.9481]
[1743283907257,1.1018,1815.9,1815.8,2.1563]
[1743283907449,1.1018,1815.9,1815.8,2.871]
[1743283908957,1.1018,1815.9,1815.8,1.462]
[1743283909563,1.1018,1815.9,1815.8,2.9336]
[1743283910265,1.1018,1815.9,1815.6,3.2078]
[1743283910266,1.4363,1816.0,1815.6,3.2078]
[1743283910456,1.4363,1816.0,1815.1,3.41700676]
[1743283910457,3.599,1815.9,1815.4,4.30987]
[1743283910763,2.51762,1815.8,1815.4,3.2078]
[1743283910958,1.10198,1815.6,1815.5,1.4716]
[1743283911459,2.51768,1815.6,1815.5,1.4716]
[1743283911763,1.4157,1815.6,1815.5,1.4716]
[1743283912361,1.1021,1815.4,1815.3,1.4361]
[1743283913359,1.10216,1815.3,1815.2,0.7183]
[1743283913557,1.10222,1815.2,1815.1,1.54628676]
[1743283913765,1.10222,1815.2,1815.1,0.11018676]
[1743283914162,2.59172,1815.2,1815.1,0.11018676]
[1743283915862,5.79952,1815.2,1815.1,0.11018676]
[1743283916566,1.10234,1815.0,1814.9,1.4168]
[1743283917268,1.4236,1815.1,1814.9,2.51917]
[1743283917560,1.4236,1815.1,1814.9,1.4168]
[1743283917765,1.4236,1815.1,1815.0,1.4168]
[1743283917966,2.52588,1815.1,1815.0,1.4168]
[1743283918464,1.10224,1815.2,1815.0,1.4168]
[1743283918664,2.48584,1815.2,1815.0,1.4168]
[1743283918861,1.3836,1815.2,1815.0,1.4168]
[1743283919056,1.10228,1815.1,1815.0,1.4168]
[1743283919260,2.48588,1815.2,1815.0,1.4168]
[1743283919664,1.3836,1815.1,1815.0,1.4168]
[1743283919866,2.48588,1815.1,1815.0,1.4168]
[1743283920070,1.3836,1815.1,1815.0,1.4168]
[1743283920465,1.3836,1815.1,1815.0,2.51914]
[1743283920670,2.48588,1815.1,1815.0,1.4168]
[1743283920871,3.9032,1815.3,1815.0,1.4168]
[1743283921072,3.21604425,1815.5,1815.1,1.10226]
[1743283921273,1.10219,1815.3,1815.2,2.0694]
[1743283922073,1.10219,1815.3,1815.2,2.7651]
[1743283922575,1.4033,1815.4,1815.0,1.1023]
[1743283922576,1.10222,1815.2,1815.1,3.2078]
[1743283922775,2.50552,1815.2,1815.1,3.2078]
[1743283923175,1.10222,1815.2,1815.1,3.2078]
[1743283923474,1.10222,1815.2,1815.1,4.587]
[1743283924172,1.4033,1815.3,1815.1,4.587]
[1743283924173,2.5055,1815.3,1815.1,5.68928]
[1743283924373,2.5055,1815.3,1815.2,1.4283]
[1743283924574,2.50546,1815.3,1815.2,1.4283]
[1743283926075,2.75301,1816.9,1815.6,3.2078]
[1743283926273,1.4722,1816.3,1815.7,7.91075]
[1743283926470,2.57375,1816.3,1816.2,3.2078]
[1743283926670,1.10174,1816.0,1815.9,3.2078]
[1743283926972,1.4722,1816.2,1815.9,3.2078]
[1743283927172,0.00824425,1816.1,1815.8,0.00824425]
[1743283927374,0.00824425,1816.1,1816.0,4.30954]
[1743283928374,0.00824425,1816.1,1816.0,3.2078]
[1743283928577,0.00824425,1816.1,1816.0,4.30954]
[1743283930081,0.00824425,1816.1,1816.0,6.9028]
[1743283930282,0.00824425,1816.1,1816.0,8.00454]
[1743283931779,5.1056,1816.7,1816.0,3.2078]
[1743283931981,1.4729,1816.1,1815.9,5.072]
[1743283932181,1.4729,1816.1,1816.0,4.30954]
[1743283932383,1.4729,1816.1,1816.0,5.79064]
[1743283932578,5.1056,1816.7,1816.1,1.10165]
[1743283932883,5.1056,1816.7,1816.3,3.2078]
[1743283932884,1.10153,1816.4,1816.3,3.2078]
[1743283934581,1.10145,1816.5,1816.3,3.2078]
[1743283934781,1.48114425,1816.6,1816.4,1.10147]
[1743283935081,1.48114425,1816.6,1816.5,3.2078]
[1743283938281,2.58251425,1816.6,1816.5,3.2078]
[1743283939684,3.29381425,1816.6,1816.5,3.2078]
[1743283943181,1.10147,1816.5,1816.3,2.8298]
[1743283943387,2.58477,1816.5,1816.3,2.8298]
[1743283943586,1.4833,1816.4,1816.3,3.93135]
[1743283943888,2.58479,1816.4,1816.3,6.0376]
[1743283944788,1.4833,1816.4,1816.3,6.0376]
[1743283945089,1.4833,1816.4,1816.3,7.13915]
[1743283946988,0.00824425,1816.6,1816.5,1.10143]
[1743283947287,2.75253,1817.2,1816.5,1.10143]
[1743283947288,2.53881,1817.1,1816.9,1.10114]
[1743283947492,2.53881,1817.1,1817.0,3.2078]
[1743283947493,4.02787,1817.1,1817.0,3.2078]
[1743283949177,4.02787,1817.1,1817.0,4.30893]
[1743283949178,1.4891,1817.1,1817.0,4.30893]
[1743283950888,1.10074,1817.7,1817.4,1.10084]
[1743283951091,1.4857,1817.4,1817.3,1.10092]
[1743283951289,1.4857,1817.4,1817.3,4.30872]
[1743283951493,0.7387,1817.8,1817.5,1.10082]
[1743283951791,0.6866,1817.9,1817.6,3.2078]
[1743283951988,1.10058,1817.9,1817.8,3.2078]
[1743283952189,0.00824425,1817.9,1817.8,3.2078]
[1743283952395,0.00824425,1817.9,1817.8,4.30844]
[1743283952789,0.00824425,1817.9,1817.8,5.72474]
[1743283953495,1.4653,1818.1,1818.0,1.10052]
[1743283953801,1.10031,1818.4,1818.1,1.10042]
[1743283953985,2.56564,1818.3,1818.2,1.4163]
[1743283954294,2.56564,1818.3,1818.2,3.2078]
[1743283957287,1.4653,1818.3,1818.2,3.2078]
[1743283957490,2.56564,1818.3,1818.2,3.2078]
[1743283965815,1.1004,1818.2,1818.1,0.00824425]
[1743283966008,2.5207,1818.2,1818.1,0.00824425]
[1743283966613,3.2331,1818.2,1818.1,0.00824425]
[1743283969214,3.2331,1818.2,1818.1,3.21604425]
[1743283974319,2.5207,1818.2,1818.1,3.21604425]
[1743283974617,1.4203,1818.2,1818.1,5.77850425]
[1743283974829,2.5207,1818.2,1818.1,5.77850425]
[1743283975121,2.5207,1818.2,1818.1,4.67804425]
[1743283983526,2.5207,1818.2,1818.1,5.77850425]
[1743283983829,2.5207,1818.2,1818.1,4.67804425]
[1743283986426,2.5207,1818.2,1818.1,3.21604425]
[1743283986621,5.0207,1818.2,1818.1,0.00824425]
[1743283987022,5.7199,1818.2,1818.1,0.00824425]
[1743283989936,5.7199,1818.2,1817.9,3.2078]
[1743283989937,1.10052,1818.0,1817.9,3.2078]
[1743283990236,2.75162,1817.8,1817.4,3.2078]
[1743283990432,1.10083,1817.5,1817.4,3.2078]
[1743283990828,1.10095,1817.3,1817.2,4.6066]
[1743283991332,1.10095,1817.3,1817.2,3.2078]
[1743283991532,0.00824425,1817.4,1817.2,3.2078]
[1743283991834,0.00824425,1817.4,1817.3,1.467]
[1743283991835,1.10913425,1817.4,1817.3,1.467]
[1743283998335,1.10095,1817.3,1817.2,3.2078]
[1743283998535,2.52645,1817.3,1817.2,3.2078]
[1743283998735,3.99855,1817.3,1817.2,3.2078]
[1743284001138,1.10101,1817.2,1817.1,0.00824425]
[1743284001434,2.46761,1817.2,1817.1,3.21604425]
[1743284001737,2.46761,1817.2,1817.1,0.00824425]
[1743284006424,2.46761,1817.2,1817.1,4.25e-06]
[1743284009635,2.46761,1817.2,1817.1,3.20780425]
[1743284010035,2.46761,1817.2,1817.1,4.65540425]
[1743284014041,2.46761,1817.2,1817.1,1.44760425]
[1743284014245,2.46761,1817.2,1817.1,4.65540425]
[1743284014641,2.46761,1817.2,1817.1,1.44760425]
[1743284014944,2.46761,1817.2,1817.1,4.65540425]
[1743284018344,2.46761,1817.2,1817.1,3.20780425]
[1743284018542,2.46761,1817.2,1817.1,4.25e-06]
[1743284019751,2.46761,1817.2,1816.7,3.2078]
[1743284019752,9.7406,1817.2,1816.7,3.2078]
[1743284020050,1.10161,1816.2,1816.1,2.8278]
[1743284020239,1.10161,1816.2,1816.1,1.4223]
[1743284020548,1.10167,1816.1,1816.0,3.2078]
[1743284020749,2.57337,1816.1,1816.0,3.2078]
[1743284024343,1.10174,1816.0,1815.9,3.21604425]
[1743284024548,1.10174,1816.0,1815.9,3.97104425]
[1743284027939,1.10174,1816.0,1815.9,0.76324425]
[1743284028139,1.10174,1816.0,1815.9,1.47234425]
[1743284028745,1.10174,1816.0,1815.9,4.68014425]
[1743284033551,1.10174,1816.0,1815.9,3.21604425]
[1743284033851,9.3378,1816.0,1815.2,0.11018069]
[1743284034056,2.7551,1815.5,1815.0,6.0598]
[1743284034252,1.10222,1815.2,1815.1,1.4583]
[1743284041060,1.10228,1815.1,1815.0,1.40194425]
[1743284041256,1.10228,1815.1,1815.0,4.60974425]
[1743284041458,1.10265,1814.5,1814.3,3.2078]
[1743284041760,1.10269,1814.5,1814.3,3.2078]
[1743284041961,1.10283,1814.2,1814.1,3.759]
[1743284042158,1.10283,1814.2,1814.1,3.2078]
[1743284042861,1.10283,1814.2,1814.1,6.124]
[1743284043057,1.10267,1814.5,1814.2,1.1028]
[1743284043364,1.10271,1814.4,1814.3,1.3829]
[1743284043558,1.10271,1814.4,1814.3,4.5907]
[1743284043769,1.10271,1814.4,1814.3,1.3829]
[1743284044163,1.10271,1814.4,1814.3,4.5907]
[1743284044361,1.10283,1814.2,1814.1,1.4367]
[1743284044665,1.10283,1814.2,1814.1,3.2078]
[1743284045262,1.10283,1814.2,1814.1,3.9353]
[1743284045457,1.10283,1814.2,1814.1,7.6093]
[1743284045663,1.10283,1814.2,1814.1,8.9922]
[1743284046063,1.10283,1814.2,1814.1,11.4922]
[1743284046262,1.10283,1814.2,1814.1,8.9922]
[1743284051363,3.674,1814.7,1814.1,11.4922]
[1743284051567,3.2078,1814.9,1814.4,3.2078]
[1743284051568,2.4776,1814.5,1814.4,3.2078]
[1743284051867,1.10271,1814.4,1814.3,1.3627]
[1743284052068,1.10271,1814.4,1814.3,4.5705]
[1743284052267,1.386,1814.8,1814.4,1.10266]
[1743284052469,5.0885,1815.0,1814.5,1.507]
[1743284052470,1.10259,1814.6,1814.5,1.507]
[1743284052768,1.10236,1815.0,1814.5,2.2502]
[1743284052957,1.386,1815.0,1814.8,3.2078]
[1743284053157,3.2078,1815.5,1814.9,2.9356]
[1743284053375,1.10207,1815.5,1815.1,1.10228]
[1743284053569,1.10212,1815.4,1815.2,1.10219]
[1743284053775,1.10212,1815.4,1815.3,1.507]
[1743284054365,1.10196,1815.7,1815.3,7.682]
[1743284054568,0.0082672,1815.5,1815.4,3.8932]
[1743284054773,1.386,1815.8,1815.5,1.102]
[1743284054968,2.48789,1815.8,1815.7,3.2078]
[1743284055165,1.386,1815.8,1815.7,3.2078]
[1743284055472,1.386,1815.8,1815.7,4.6834]
[1743284055873,1.386,1815.8,1815.7,5.78532]
[1743284056266,0.0082672,1815.9,1815.8,1.10186]
[1743284056661,0.0082672,1815.9,1815.8,1.83096]
[1743284056868,0.0082672,1815.9,1815.8,4.33096]
[1743284057070,1.10164,1816.2,1815.9,1.10175]
[1743284057269,3.899,1816.8,1816.1,3.2078]
[1743284057470,1.4918,1816.6,1816.4,3.2078]
[1743284057774,1.10149,1816.4,1816.3,3.2078]
[1743284058672,1.10149,1816.4,1816.3,6.8918]
[1743284058975,2.54929,1816.4,1816.3,6.8918]
[1743284059180,1.4478,1816.4,1816.3,6.8918]
[1743284059879,1.4478,1816.4,1816.3,7.99335]
[1743284060077,0.0082672,1816.5,1816.3,7.99335]
[1743284060273,0.0082672,1816.5,1816.4,1.5072]
[1743284060579,1.1096972,1816.5,1816.4,1.5072]
[1743284061275,0.0082672,1816.5,1816.4,1.5072]
[1743284061468,0.0082672,1816.5,1816.4,2.60869]
[1743284061671,0.0082672,1816.5,1816.4,1.5072]
[1743284062270,0.0082672,1816.5,1816.4,5.10869]
[1743284062578,0.0082672,1816.5,1816.4,2.60869]
[1743284063483,0.0082672,1816.5,1816.3,3.9483]
[1743284063484,1.10149,1816.4,1816.3,3.9483]
[1743284063685,1.10149,1816.4,1816.2,0.0082672]
[1743284063686,1.10155,1816.3,1816.2,0.0082672]
[1743284064279,1.10155,1816.3,1816.2,3.2160672]
[1743284064480,1.10155,1816.3,1816.2,0.0082672]
[1743284064677,1.10155,1816.3,1816.2,3.2160672]
[1743284066885,1.10155,1816.3,1816.2,0.0082672]
[1743284067489,2.59715,1816.3,1816.2,0.0082672]
[1743284068694,1.1018,1815.9,1815.8,3.678]
[1743284069894,1.10186,1815.8,1815.7,3.2160672]
[1743284072396,1.10186,1815.8,1815.7,0.0082672]
[1743284072599,1.10186,1815.8,1815.7,3.2160672]
[1743284073297,1.10186,1815.8,1815.7,0.0082672]
[1743284073693,1.10186,1815.8,1815.7,3.2160672]
[1743284075700,1.10186,1815.8,1815.7,4.6633672]
[1743284076797,2.1475,1816.1,1815.7,4.6633672]
[1743284076798,1.4356,1816.1,1815.7,4.6633672]
[1743284077100,2.53731,1816.1,1815.9,4.30958]
[1743284077408,2.53731,1816.1,1815.9,7.97258]
[1743284078300,1.10171,1816.1,1815.9,7.97258]
[1743284078497,1.10171,1816.1,1816.0,1.3629]
[1743284078890,1.10165,1816.2,1816.0,2.46464]
[1743284079096,0.0082672,1816.5,1816.1,3.2078]
[1743284079296,1.3716672,1816.5,1816.3,4.30934]
[1743284079491,1.3716672,1816.5,1816.4,1.10149]
[1743284079701,1.3716672,1816.5,1816.4,2.55489]
[1743284082705,0.0082672,1816.5,1816.4,5.05489]
[1743284083707,0.0082672,1816.5,1816.4,2.55489]
[1743284090709,0.0082672,1816.5,1816.3,4.30933]
[1743284091010,1.10149,1816.4,1816.3,4.30933]
[1743284091210,2.54279,1816.4,1816.3,7.95633]
[1743284092312,1.4413,1816.4,1816.3,7.95633]
[1743284094116,2.54279,1816.4,1816.3,6.8498]
[1743284094413,2.54279,1816.4,1816.3,6.8508]
[1743284094809,1.4413,1816.4,1816.3,7.95235]
[1743284100117,1.4413,1816.4,1816.3,10.45235]
[1743284100318,0.0082672,1816.5,1816.4,1.10149]
[1743284100517,0.0082672,1816.5,1816.4,2.60959]
[1743284102720,1.4340672,1816.5,1816.4,2.60959]
[1743284104422,1.4340672,1816.5,1816.4,5.81739]
[1743284106819,3.9340672,1816.5,1816.1,0.5512]
[1743284107024,1.10186,1815.8,1815.7,0.0082672]
[1743284108125,1.10224,1815.2,1815.1,3.659]
[1743284108426,1.10228,1815.1,1815.0,3.2078]
[1743284108723,2.54118,1815.1,1815.0,3.2078]
[1743284110027,2.54118,1815.1,1814.9,3.6702672]
[1743284110323,1.10234,1815.0,1814.9,0.0082672]
[1743284110512,1.10234,1815.0,1814.9,3.6672672]
[1743284110513,2.58804,1815.0,1814.9,3.6672672]
[1743284110712,1.4857,1815.0,1814.9,3.6672672]
[1743284111124,2.58804,1815.0,1814.9,3.6672672]
[1743284111518,2.58804,1815.0,1814.9,0.0082672]
[1743284113521,1.4857,1815.0,1814.9,0.0082672]
[1743284113721,2.58804,1815.0,1814.9,0.0082672]
[1743284114929,5.79584,1815.0,1814.9,0.0082672]
[1743284115728,2.75613,1814.9,1814.3,0.5512]
[1743284116029,2.75613,1814.9,1814.3,3.2078]
[1743284116030,1.10271,1814.4,1814.3,3.2078]
[1743284116224,8.17194,1814.8,1814.2,3.675]
[1743284116424,8.17194,1814.8,1814.2,3.674]
[1743284116425,1.10275,1814.4,1814.2,3.674]
[1743284116626,2.58788,1814.3,1814.1,6.50174]
[1743284116826,1.10283,1814.2,1814.1,0.0082672]
[1743284117027,1.4851,1814.2,1814.1,3.6882672]
[1743284117334,2.58793,1814.2,1814.1,6.8960672]
[1743284117533,2.58793,1814.2,1814.1,3.2160672]
[1743284117722,2.58793,1814.2,1814.1,0.0082672]
[1743284118126,2.58793,1814.2,1814.1,3.2160672]
[1743284118627,2.58793,1814.2,1814.1,3.6862672]
[1743284119337,2.58793,1814.2,1814.1,3.6842672]
[1743284119540,2.58793,1814.2,1814.1,6.8920672]
[1743284120533,2.58793,1814.2,1814.1,6.8900672]
[1743284121036,2.58793,1814.2,1814.1,3.2160672]
[1743284123634,2.58793,1814.2,1814.1,0.0082672]
[1743284125934,3.2078,1814.6,1814.1,4.3189572]
[1743284126129,1.4239,1814.6,1814.3,3.2078]
[1743284126433,7.2832,1815.1,1814.8,1.10241]
[1743284126434,0.6878,1815.1,1814.8,1.10241]
[1743284126634,2.52624,1815.0,1814.9,1.3998]
[1743284126935,1.4239,1815.0,1814.9,2.5022]
[1743284127336,1.4239,1815.0,1814.9,1.3998]
[1743284127538,1.4239,1815.0,1814.9,2.5022]
[1743284128338,2.52624,1815.0,1814.9,1.3998]
[1743284128536,1.4239,1815.0,1814.9,2.5022]
[1743284129040,1.4239,1815.0,1814.9,1.3998]
[1743284129443,2.52624,1815.0,1814.9,1.3998]
[1743284130343,1.4239,1815.0,1814.7,4.31028]
[1743284130538,1.4239,1815.0,1814.7,7.99428]
[1743284130940,2.52628,1815.0,1814.7,6.8918]
[1743284131139,2.52628,1815.0,1814.7,7.99429]
[1743284131340,1.10241,1814.9,1814.7,7.99429]
[1743284131644,1.4608,1814.8,1814.7,7.99429]
[1743284131942,1.4608,1814.8,1814.7,6.8918]
[1743284132145,1.4608,1814.8,1814.7,7.99432]
[1743284133544,1.4608,1814.8,1814.7,7.98732]
[1743284135336,1.4608,1814.8,1814.7,4.77952]
[1743284135537,1.4608,1814.8,1814.7,7.98732]
[1743284140947,1.10239,1815.0,1814.8,1.10246]
[1743284141151,0.0082672,1815.2,1815.1,1.10228]
[1743284141447,0.0082672,1815.2,1815.1,4.31008]
[1743284142442,1.4393672,1815.2,1815.1,5.80098]
[1743284142638,0.0082672,1815.2,1815.1,5.80098]
[1743284142848,0.7214,1815.6,1815.4,1.10205]
[1743284142849,1.10199,1815.6,1815.4,1.10205]
[1743284143048,1.4311,1815.5,1815.4,4.77205]
[1743284143239,1.10191,1815.8,1815.5,1.10199]
[1743284143444,1.4914,1815.7,1815.6,1.10198]
[1743284146043,0.0082672,1815.8,1815.7,1.10192]
[1743284146451,1.3739672,1815.8,1815.7,4.77392]
[1743284147156,0.0082672,1815.8,1815.7,7.98172]
[1743284147954,2.46735,1816.2,1816.0,1.10171]
[1743284148254,2.46735,1816.2,1816.1,3.673]
[1743284148948,1.3657,1816.2,1816.1,4.77467]
[1743284149142,1.1098372,1816.3,1816.1,6.21555]
[1743284149654,1.488,1816.2,1816.1,6.21555]
[1743284150047,1.488,1816.2,1816.1,2.54255]
[1743284150248,1.488,1816.2,1816.1,6.21155]
[1743284151355,1.488,1816.9,1816.8,1.10125]
[1743284151544,1.488,1816.9,1816.8,8.00805]
[1743284151743,1.10097,1817.3,1817.0,1.10109]
[1743284151954,1.4971,1817.5,1817.0,3.2078]
[1743284152154,1.4971,1817.5,1817.0,6.9078]
[1743284152354,1.4971,1817.5,1817.0,8.00888]
[1743284152355,1.10097,1817.3,1817.0,8.00888]
[1743284152556,1.10099,1817.3,1817.1,0.0082672]
[1743284152755,1.1091872,1817.4,1817.1,1.1093072]
[1743284153058,1.10095,1817.3,1817.1,1.1092972]
[1743284153250,1.1091972,1817.4,1817.1,1.1092972]
[1743284153450,1.1091972,1817.4,1817.2,1.101]
[1743284153755,1.1091972,1817.4,1817.1,1.1092772]
[1743284154150,1.1091972,1817.4,1817.2,1.101]
[1743284154555,1.1091972,1817.4,1817.1,1.1092872]
[1743284154853,1.10095,1817.3,1817.1,1.1092972]
[1743284155055,1.10101,1817.2,1817.1,0.0082672]
[1743284157852,1.4476,1817.3,1817.1,0.0082672]
[1743284158153,1.4476,1817.3,1817.2,1.10101]
[1743284158350,1.4476,1817.3,1817.2,4.80301]
[1743284160246,1.4476,1817.3,1817.1,0.0082672]
[1743284160454,1.10101,1817.2,1817.1,0.0082672]
[1743284165161,1.10125,1816.8,1816.7,5.0584]
[1743284165754,1.10125,1816.8,1816.7,1.3674]
[1743284165960,1.10125,1816.8,1816.6,7.99914]
[1743284166159,2.58381,1816.7,1816.6,4.6601672]
[1743284166358,2.58381,1816.7,1816.6,3.2160672]
[1743284166967,2.58381,1816.7,1816.6,0.0082672]
[1743284170571,1.4825,1816.7,1816.6,0.0082672]
[1743284170761,1.4825,1816.7,1816.6,1.4069672]
[1743284170957,2.58381,1816.7,1816.6,1.4069672]
[1743284171374,0.7554,1817.0,1816.6,0.0082672]
[1743284171562,1.4679,1816.9,1816.8,1.10119]
[1743284171769,2.56909,1816.9,1816.8,3.2078]
[1743284171970,1.4679,1816.9,1816.8,4.30905]
[1743284172167,2.56909,1816.9,1816.8,4.30905]
[1743284172470,2.56909,1816.9,1816.8,3.2078]
[1743284173467,8.62641,1817.3,1816.8,3.2078]
[1743284173468,3.2160672,1817.4,1816.8,3.2078]
[1743284173664,2.56897,1817.1,1817.0,4.30893]
[1743284174565,1.4679,1817.1,1817.0,4.30893]
[1743284174761,2.56897,1817.1,1817.0,4.30893]
[1743284175367,1.4679,1817.1,1817.0,4.30893]
[1743284177075,2.56897,1817.1,1817.0,3.2078]
[1743284178069,2.56897,1817.1,1817.0,6.8878]
[1743284178571,1.4679,1817.1,1817.0,7.98893]
[1743284179168,1.4679,1817.1,1817.0,4.78113]
[1743284179369,1.4679,1817.1,1817.0,3.68]
[1743284179370,2.56897,1817.1,1817.0,3.68]
[1743284181776,2.56897,1817.1,1817.0,4.78113]
[1743284182871,2.56897,1817.1,1817.0,5.0566]
[1743284183069,2.56897,1817.1,1817.0,6.15773]
[1743284183483,2.56897,1817.1,1817.0,5.0566]
[1743284183670,2.56897,1817.1,1817.0,6.15773]
[1743284184571,1.10107,1817.1,1817.0,6.15773]
[1743284186581,1.10107,1817.1,1817.0,5.0566]